bitfinex/quotes_BTCUSD_20251021
["timestamp","ask_amount","ask_price","bid_price","bid_amount"]
[1761027704349,0.52477457,108240.0,108220.0,0.12813574]
[1761027704588,0.19114527,108230.0,108220.0,0.12813574]
[1761027704792,0.20090825,108230.0,108210.0,0.3111866]
[1761027705407,0.20090825,108230.0,108220.0,0.18480872]
[1761027707438,0.20090825,108230.0,108210.0,0.3111866]
[1761027707793,0.20090825,108230.0,108210.0,0.71763987]
[1761027708010,0.20090825,108230.0,108220.0,0.18480872]
[1761027710271,0.02778833,108250.0,108240.0,0.18477457]
[1761027710472,0.00635363,108250.0,108240.0,0.30205457]
[1761027711090,0.00635363,108250.0,108240.0,0.23305457]
[1761027715662,0.00635363,108250.0,108240.0,0.63950784]
[1761027716134,0.65912562,108260.0,108250.0,0.1847575]
[1761027716556,0.47438486,108260.0,108250.0,0.1847575]
[1761027716756,0.01706486,108260.0,108250.0,0.59121077]
[1761027718154,0.01706486,108260.0,108250.0,0.52221077]
[1761027718360,0.02341849,108260.0,108250.0,0.1157575]
[1761027718591,0.02341849,108260.0,108250.0,0.13423325]
[1761027720392,0.01706486,108260.0,108250.0,0.54068652]
[1761027720600,0.00049557,108260.0,108250.0,0.52221077]
[1761027722054,0.00049557,108260.0,108250.0,0.52165104]
[1761027722231,0.00049557,108260.0,108250.0,0.64765233]
[1761027722430,0.00049557,108260.0,108250.0,1.0541056]
[1761027722638,0.00049557,108260.0,108250.0,1.14392461]
[1761027722840,0.00049557,108260.0,108250.0,1.29212461]
[1761027723056,0.06114051,108300.0,108290.0,0.18468926]
[1761027723217,0.03336614,108300.0,108290.0,0.18468926]
[1761027723420,0.03345489,108300.0,108290.0,0.18468926]
[1761027723967,0.21812709,108300.0,108290.0,0.18468926]
[1761027724132,0.20363651,108300.0,108290.0,0.18468926]
[1761027724340,0.20363651,108300.0,108280.0,0.30194631]
[1761027724536,0.18468926,108290.0,108280.0,0.11724]
[1761027724778,0.19104289,108290.0,108280.0,0.13579063]
[1761027724987,0.19392372,108290.0,108280.0,0.11736]
[1761027725294,0.19392372,108290.0,108270.0,0.70853511]
[1761027726278,0.5270738,108300.0,108280.0,0.69944309]
[1761027726500,0.3424,108300.0,108290.0,0.18468926]
[1761027727596,0.0024,108300.0,108290.0,0.18468926]
[1761027727794,0.19342583,108300.0,108290.0,0.18468926]
[1761027728004,0.1870722,108300.0,108290.0,0.18468926]
[1761027728211,0.0024,108300.0,108290.0,0.18468926]
[1761027729887,0.0024,108300.0,108290.0,0.77198034]
[1761027730088,0.0024,108300.0,108290.0,0.31069055]
[1761027730558,0.0024,108300.0,108290.0,0.77198034]
[1761027731237,0.0024,108300.0,108290.0,0.45889055]
[1761027731238,1e-08,108300.0,108290.0,0.45889055]
[1761027731496,1e-08,108300.0,108290.0,1.11198034]
[1761027731698,1e-08,108300.0,108290.0,0.65069055]
[1761027731980,1e-08,108300.0,108290.0,1.11198034]
[1761027732168,1e-08,108300.0,108290.0,1.21179934]
[1761027732782,1e-08,108300.0,108290.0,1.22955665]
[1761027732996,1e-08,108300.0,108290.0,1.20179935]
[1761027733199,1e-08,108300.0,108290.0,1.31923935]
[1761027733394,1e-08,108300.0,108290.0,0.85794956]
[1761027733638,1e-08,108300.0,108290.0,1.31923935]
[1761027735520,1e-08,108300.0,108290.0,1.28305707]
[1761027735814,1e-08,108300.0,108290.0,1.31923935]
[1761027738759,1e-08,108300.0,108290.0,0.85794956]
[1761027739015,1e-08,108300.0,108290.0,1.31923935]
[1761027740793,1e-08,108300.0,108290.0,0.85794956]
[1761027740966,1e-08,108300.0,108290.0,0.85315806]
[1761027741427,1e-08,108300.0,108290.0,0.39186827]
[1761027742355,1e-08,108300.0,108290.0,0.42805055]
[1761027742557,1e-08,108300.0,108290.0,0.39186827]
[1761027742782,0.19102584,108300.0,108270.0,0.193958]
[1761027742996,0.18468926,108290.0,108280.0,0.41039595]
[1761027743192,0.18468926,108290.0,108260.0,0.00923702]
[1761027743400,0.18468926,108290.0,108270.0,0.39194238]
[1761027743617,0.18470631,108280.0,108270.0,0.08981901]
[1761027743793,0.18470631,108280.0,108270.0,0.27454238]
[1761027743992,0.03693956,108280.0,108270.0,0.27454238]
[1761027744197,0.18468926,108290.0,108270.0,0.27454238]
[1761027744632,0.18470631,108280.0,108270.0,0.27454238]
[1761027744837,0.18470631,108280.0,108270.0,0.31072466]
[1761027745035,0.18470631,108280.0,108260.0,0.30213548]
[1761027745202,0.18470631,108280.0,108260.0,0.39195449]
[1761027745412,0.22357424,108280.0,108260.0,0.39195449]
[1761027745994,0.22357424,108280.0,108270.0,0.03618228]
[1761027746330,0.18472337,108270.0,108260.0,0.24340129]
[1761027746642,0.22357424,108280.0,108260.0,0.39195944]
[1761027746866,0.18472337,108270.0,108240.0,0.12501329]
[1761027747071,0.25288292,108270.0,108250.0,0.41045182]
[1761027747273,0.24652929,108270.0,108250.0,0.27457607]
[1761027747452,0.24652929,108270.0,108260.0,0.18474043]
[1761027747796,0.24652929,108270.0,108250.0,0.27457607]
[1761027748107,0.19395953,108270.0,108260.0,0.18474043]
[1761027748322,0.18472337,108270.0,108260.0,0.18474043]
[1761027748777,0.34097424,108280.0,108260.0,0.18474043]
[1761027749057,0.00635363,108270.0,108260.0,0.18474043]
[1761027750552,0.35546112,108280.0,108260.0,0.18474043]
[1761027750995,0.35546112,108280.0,108260.0,0.18629846]
[1761027751198,0.31659319,108280.0,108260.0,0.18629846]
[1761027751752,0.18472337,108270.0,108260.0,0.18629846]
[1761027751957,0.191077,108270.0,108260.0,0.00155803]
[1761027752157,0.18472337,108270.0,108260.0,0.00155803]
[1761027752652,0.23485503,108270.0,108260.0,0.00155803]
[1761027752993,0.23485503,108270.0,108260.0,0.02003207]
[1761027753437,0.18472337,108270.0,108260.0,0.2047725]
[1761027753736,0.18472337,108270.0,108260.0,0.18629846]
[1761027754402,0.18472337,108270.0,108260.0,0.00155803]
[1761027754604,0.18472337,108270.0,108260.0,0.02003207]
[1761027755021,0.18472337,108270.0,108260.0,0.00155803]
[1761027755160,0.23485503,108270.0,108260.0,0.00155803]
[1761027755971,0.57485503,108270.0,108260.0,0.00155803]
[1761027757390,0.18474043,108260.0,108250.0,0.18331429]
[1761027758250,0.57485503,108270.0,108250.0,0.18331429]
[1761027758464,0.00635363,108260.0,108250.0,0.18331429]
[1761027759667,0.19109406,108260.0,108250.0,0.18331429]
[1761027759917,0.18474043,108260.0,108250.0,0.18331429]
[1761027761059,0.18474043,108260.0,108240.0,0.31194643]
[1761027761256,0.18474043,108260.0,108240.0,0.40176544]
[1761027761462,0.25568681,108260.0,108250.0,0.1847575]
[1761027761713,0.18474043,108260.0,108250.0,0.1847575]
[1761027762472,0.52472337,108270.0,108250.0,0.1847575]
[1761027762671,0.00635363,108260.0,108250.0,0.1847575]
[1761027766416,0.34,108270.0,108260.0,0.23939675]
[1761027766623,0.34,108270.0,108260.0,0.22092271]
[1761027767584,0.56017206,108270.0,108260.0,0.22092271]
[1761027767701,0.37544869,108270.0,108260.0,0.22092271]
[1761027768838,0.03544869,108270.0,108260.0,0.22092271]
[1761027769044,0.191077,108270.0,108250.0,0.27457339]
[1761027769309,0.30200337,108270.0,108250.0,0.27457339]
[1761027769517,0.30200337,108270.0,108260.0,0.18474043]
[1761027769721,0.30200337,108270.0,108250.0,0.27457339]
[1761027769871,0.30200337,108270.0,108260.0,0.18474043]
[1761027771939,0.47168688,108280.0,108270.0,0.18472337]
[1761027772078,0.47168688,108280.0,108270.0,0.21042609]
[1761027772513,0.01448688,108280.0,108270.0,0.21042609]
[1761027772726,1e-08,108300.0,108290.0,0.18468926]
[1761027772929,1e-08,108300.0,108290.0,0.31069055]
[1761027774360,1e-08,108300.0,108290.0,0.45889055]
[1761027774523,1e-08,108300.0,108290.0,1.16815618]
[1761027775511,1e-08,108300.0,108290.0,1.50815618]
[1761027777393,1e-08,108300.0,108290.0,1.62547618]
[1761027777600,1e-08,108300.0,108290.0,1.71529519]
[1761027777998,1e-08,108300.0,108290.0,1.56709519]
[1761027778206,1e-08,108300.0,108290.0,1.60209032]
[1761027778992,0.08805428,108360.0,108350.0,0.22076926]
[1761027779202,0.08820306,108360.0,108350.0,0.42826827]
[1761027779981,0.08820306,108360.0,108350.0,1.1375339]
[1761027780810,0.08820306,108360.0,108350.0,1.14751283]
[1761027781040,0.00049393,108400.0,108390.0,0.18451886]
[1761027781257,0.00958498,108400.0,108390.0,0.18451886]
[1761027781469,0.00098941,108400.0,108390.0,0.31052015]
[1761027781671,0.18549125,108400.0,108380.0,0.11772]
[1761027781849,0.19184488,108400.0,108380.0,0.32070813]
[1761027782091,2.995,108390.0,108380.0,0.33843683]
[1761027782295,0.00098941,108400.0,108390.0,0.22070114]
[1761027782495,0.00098941,108400.0,108390.0,1.10960479]
[1761027783448,0.00098941,108400.0,108390.0,0.40033916]
[1761027783647,0.18549125,108400.0,108390.0,0.12600129]
[1761027784007,0.18549125,108400.0,108390.0,0.03618228]
[1761027784389,0.18549125,108400.0,108380.0,0.11808]
[1761027784599,0.1854919,108400.0,108380.0,0.41088472]
[1761027784740,0.1854917,108400.0,108380.0,0.39243114]
[1761027784936,0.1854917,108400.0,108390.0,0.02146118]
[1761027785138,0.5254917,108400.0,108390.0,0.02146118]
[1761027785382,0.5254917,108400.0,108390.0,0.02098226]
[1761027785582,3.59200099,108400.0,108390.0,0.02098226]
[1761027789429,3.59200099,108400.0,108390.0,0.00598226]
[1761027789756,3.71000099,108400.0,108390.0,0.00598226]
[1761027790252,3.59200099,108400.0,108390.0,0.00598226]
[1761027790441,3.71000099,108400.0,108390.0,0.00598226]
[1761027790674,3.79986,108400.0,108390.0,0.00598226]
[1761027790849,3.71004099,108400.0,108390.0,0.00598226]
[1761027791879,3.59200099,108400.0,108390.0,0.00598226]
[1761027792084,3.71000099,108400.0,108390.0,0.00598226]
[1761027792858,3.73775192,108400.0,108390.0,0.00598226]
[1761027793952,0.18457133,108360.0,108350.0,0.18458503]
[1761027794159,0.18456995,108360.0,108350.0,0.33278698]
[1761027794772,0.18458698,108350.0,108340.0,0.1482]
[1761027794973,0.18456995,108360.0,108340.0,0.44108343]
[1761027795152,0.18456995,108360.0,108340.0,0.42277181]
[1761027795494,0.18458698,108350.0,108340.0,0.42277181]
[1761027795704,0.27438896,108360.0,108340.0,0.42277181]
[1761027796105,0.18456995,108360.0,108340.0,0.42277181]
[1761027797326,0.52456995,108360.0,108350.0,0.18458698]
[1761027797677,0.52456995,108360.0,108340.0,0.42277181]
[1761027798351,0.34,108360.0,108350.0,0.18458698]
[1761027798509,0.34,108360.0,108350.0,0.20304567]
[1761027798717,0.19378086,108390.0,108370.0,0.18455292]
[1761027798946,0.01001944,108390.0,108380.0,0.18453589]
[1761027799313,0.19422131,108400.0,108390.0,0.18451886]
[1761027799314,0.02824212,108400.0,108390.0,0.18451886]
[1761027799562,0.00049393,108400.0,108390.0,0.18451886]
[1761027799714,0.18499577,108400.0,108380.0,0.2743549]
[1761027799931,0.18499577,108400.0,108370.0,0.31170056]
[1761027799932,0.52499577,108400.0,108390.0,0.01845188]
[1761027800143,0.52453721,108380.0,108360.0,0.1845629]
[1761027800297,1.23256674,108380.0,108360.0,0.27438896]
[1761027800499,0.52453942,108380.0,108370.0,0.18455292]
[1761027800721,0.52453942,108380.0,108360.0,0.27438896]
[1761027801683,0.52453942,108380.0,108370.0,0.20280191]
[1761027801874,0.1937581,108390.0,108370.0,0.18455292]
[1761027802075,0.36713086,108400.0,108380.0,0.18453589]
[1761027802373,0.18499789,108400.0,108380.0,0.18453589]
[1761027802576,0.30307789,108400.0,108380.0,0.18453589]
[1761027803140,0.00635363,108390.0,108380.0,0.18453589]
[1761027803977,0.19087249,108390.0,108380.0,0.18453589]
[1761027804184,0.18451886,108390.0,108380.0,0.18453589]
[1761027804384,0.30307789,108400.0,108380.0,0.18453589]
[1761027804546,0.31169208,108400.0,108380.0,0.18453589]
[1761027804751,0.00635363,108390.0,108380.0,0.18453589]
[1761027804952,0.00635363,108390.0,108380.0,0.184888]
[1761027805147,0.00635363,108390.0,108380.0,0.00035211]
[1761027805148,0.19087249,108390.0,108380.0,0.00035211]
[1761027805503,0.18451886,108390.0,108380.0,0.00035211]
[1761027805782,0.89254839,108390.0,108380.0,0.00035211]
[1761027806013,0.18451886,108390.0,108380.0,0.00035211]
[1761027806149,0.18451886,108390.0,108380.0,0.184888]
[1761027806565,0.18451886,108390.0,108380.0,0.118888]
[1761027806777,0.18451886,108390.0,108370.0,0.45083117]
[1761027806999,0.18451886,108390.0,108380.0,0.18453589]
[1761027807413,0.1931456,108390.0,108370.0,0.54065018]
[1761027807651,0.18451886,108390.0,108370.0,0.45083292]
[1761027807833,0.00635363,108380.0,108370.0,0.45083292]
[1761027808192,0.00635363,108380.0,108370.0,0.45118508]
[1761027808398,0.18451886,108390.0,108380.0,0.18453589]
[1761027808860,0.18451886,108390.0,108370.0,0.45118508]
[1761027809005,0.19315104,108390.0,108370.0,0.51568343]
[1761027809211,0.18451886,108390.0,108370.0,0.51568343]
[1761027809728,0.19315091,108390.0,108380.0,0.18453589]
[1761027810041,0.31218298,108400.0,108390.0,0.18451886]
[1761027810243,0.320815,108400.0,108390.0,0.18451886]
[1761027810819,0.01835259,108400.0,108390.0,0.18451886]
[1761027811106,0.31790297,108400.0,108390.0,0.18451886]
[1761027811356,0.19362934,108400.0,108390.0,0.18451886]
[1761027811624,0.0091275,108400.0,108390.0,0.18451886]
[1761027811825,0.0091275,108400.0,108390.0,0.22142434]
[1761027812034,0.0091275,108400.0,108390.0,0.30243886]
[1761027812455,0.0091275,108400.0,108390.0,0.39225787]
[1761027813139,0.19362934,108400.0,108390.0,0.39225787]
[1761027813713,0.19362934,108400.0,108380.0,0.18453589]
[1761027813903,0.00635363,108390.0,108380.0,0.30241033]
[1761027814279,0.18499732,108400.0,108380.0,0.30241033]
[1761027814546,0.00635363,108390.0,108380.0,0.18453033]
[1761027814747,0.00635363,108390.0,108380.0,0.30241033]
[1761027815375,0.19087249,108390.0,108380.0,0.30241033]
[1761027815580,0.18451886,108390.0,108380.0,0.30241033]
[1761027815813,0.27433787,108390.0,108380.0,0.30241033]
[1761027816342,0.18451886,108390.0,108380.0,0.30241033]
[1761027816494,0.30287732,108400.0,108380.0,0.30241033]
[1761027816842,0.31150692,108400.0,108380.0,0.30241033]
[1761027817049,0.18453589,108380.0,108370.0,0.00035216]
[1761027817255,0.18453589,108380.0,108340.0,0.00103914]
[1761027817256,3.52458698,108350.0,108340.0,0.00103914]
[1761027817463,4.41949454,108350.0,108340.0,0.00103914]
[1761027817640,4.44747253,108350.0,108340.0,0.00103914]
[1761027818001,4.47523674,108350.0,108340.0,0.00103914]
[1761027818204,4.46725873,108350.0,108340.0,1e-08]
[1761027818404,4.58294967,108350.0,108340.0,1e-08]
[1761027818606,3.87492014,108350.0,108340.0,1e-08]
[1761027819006,3.86496015,108350.0,108340.0,1e-08]
[1761027819681,3.74668015,108350.0,108340.0,1e-08]
[1761027819858,3.73926922,108350.0,108340.0,1e-08]
[1761027820876,0.18464675,108320.0,108300.0,0.16490568]
[1761027821052,0.00635363,108310.0,108300.0,0.1833729]
[1761027821265,0.00635363,108310.0,108290.0,0.18467799]
[1761027821266,0.89903831,108310.0,108290.0,0.18467799]
[1761027821454,0.98250369,108310.0,108290.0,0.18468926]
[1761027821635,0.89268468,108310.0,108290.0,0.18468926]
[1761027822097,0.18465515,108310.0,108290.0,0.18468926]
[1761027822298,0.11828,108300.0,108290.0,0.18468926]
[1761027822477,0.12463363,108300.0,108290.0,0.18468926]
[1761027822881,0.12463363,108300.0,108270.0,0.11828]
[1761027822882,0.18468926,108290.0,108270.0,0.11828]
[1761027823220,0.9825378,108290.0,108280.0,0.00317224]
[1761027823422,0.89271879,108290.0,108280.0,0.00317224]
[1761027823627,0.31218581,108300.0,108280.0,0.00317224]
[1761027823628,1.02021534,108300.0,108280.0,0.18787855]
[1761027823802,1.02021534,108300.0,108280.0,0.18470631]
[1761027824009,0.18468926,108290.0,108280.0,0.18470631]
[1761027825291,0.52468926,108290.0,108270.0,0.18471112]
[1761027825491,0.12463363,108280.0,108270.0,0.18471112]
[1761027825695,0.30933994,108280.0,108270.0,0.18471112]
[1761027825923,0.30298631,108280.0,108270.0,0.18471112]
[1761027826327,0.30298631,108280.0,108270.0,0.18472337]
[1761027826526,0.30298631,108280.0,108250.0,0.31221193]
[1761027826724,0.191077,108270.0,108250.0,0.27466183]
[1761027827044,0.31222162,108280.0,108260.0,0.18474043]
[1761027827231,0.00635363,108270.0,108260.0,0.18474043]
[1761027827425,0.191077,108270.0,108260.0,0.18474043]
[1761027827729,0.18472337,108270.0,108260.0,0.18474043]
[1761027827944,0.52472337,108270.0,108250.0,0.27466183]
[1761027828606,0.60841787,108270.0,108250.0,0.27466183]
[1761027830556,0.34,108270.0,108260.0,0.18474043]
[1761027830805,0.52472337,108270.0,108260.0,0.18474043]
[1761027831007,0.52472337,108270.0,108260.0,0.18861833]
[1761027831171,0.52472337,108270.0,108260.0,0.0038779]
[1761027831856,0.52472337,108270.0,108260.0,0.18861833]
[1761027832656,0.34,108270.0,108260.0,0.18861833]
[1761027833439,0.45816,108270.0,108260.0,0.18861833]
[1761027834907,0.19392372,108290.0,108280.0,0.18470631]
[1761027835109,0.34,108280.0,108270.0,0.18470932]
[1761027835392,0.19390581,108300.0,108280.0,0.18469128]
[1761027835708,0.64916289,108290.0,108270.0,0.19394548]
[1761027835951,0.64280926,108290.0,108280.0,0.18470631]
[1761027837368,0.64276926,108290.0,108280.0,0.18470631]
[1761027837915,0.64276926,108290.0,108280.0,0.12870631]
[1761027838350,3.0,108300.0,108280.0,0.13794162]
[1761027838526,0.11808,108300.0,108290.0,0.18468131]
[1761027838729,0.00635363,108300.0,108290.0,0.18468131]
[1761027838931,0.12443363,108300.0,108290.0,0.18468131]
[1761027839280,0.01448579,108320.0,108310.0,0.18465515]
[1761027839613,0.0146343,108320.0,108310.0,0.18465515]
[1761027839784,0.0146343,108320.0,108300.0,0.27448011]
[1761027839785,0.18478661,108320.0,108300.0,0.27448011]
[1761027839996,0.00635363,108310.0,108300.0,0.1846611]
[1761027840401,0.30289515,108310.0,108290.0,0.11808]
[1761027840604,0.19102583,108300.0,108280.0,0.12870631]
[1761027840846,0.30928289,108290.0,108270.0,0.33290932]
[1761027841038,0.00635363,108280.0,108270.0,0.33292337]
[1761027841621,0.19105994,108280.0,108270.0,0.33292337]
[1761027841837,0.30292926,108290.0,108270.0,0.33292337]
[1761027842093,0.29867879,108290.0,108270.0,0.33292337]
[1761027845457,0.63867879,108290.0,108280.0,0.18470631]
[1761027845862,0.63867879,108290.0,108270.0,0.33292337]
[1761027846014,0.63867879,108290.0,108280.0,0.18470631]
[1761027846217,0.64367879,108290.0,108280.0,0.18787855]
[1761027847014,0.64367879,108290.0,108280.0,0.00317224]
[1761027847234,0.7334978,108290.0,108280.0,0.00317224]
[1761027847408,3.80469291,108290.0,108280.0,0.00317224]
[1761027847610,3.79642191,108290.0,108280.0,0.00317224]
[1761027854825,3.81090952,108290.0,108280.0,0.00317224]
[1761027856986,3.36519099,108290.0,108280.0,0.00317224]
[1761027857184,3.46866338,108290.0,108280.0,0.00317224]
[1761027857394,3.80866338,108290.0,108280.0,0.00317224]
[1761027860191,0.34,108260.0,108240.0,0.28237968]
[1761027860392,3.0,108250.0,108240.0,0.13467525]
[1761027860633,3.0,108250.0,108240.0,0.28287525]
[1761027861415,0.64270194,108260.0,108250.0,0.1847575]
[1761027861998,0.64270043,108260.0,108250.0,0.1847575]
[1761027862199,0.45796,108260.0,108250.0,0.1847575]
[1761027862403,0.64270043,108260.0,108250.0,0.1847575]
[1761027864147,0.45796,108260.0,108250.0,0.1847575]
[1761027864337,0.64270043,108260.0,108250.0,0.1847575]
[1761027865800,0.64270043,108260.0,108250.0,0.18581564]
[1761027867288,0.64270043,108260.0,108250.0,0.15881564]
[1761027867699,0.64270043,108260.0,108250.0,0.00105814]
[1761027867900,3.64270043,108260.0,108250.0,0.00174976]
[1761027869939,3.676416,108260.0,108250.0,0.00174976]
[1761027870140,3.64270043,108260.0,108250.0,0.00174976]
[1761027870348,0.64270043,108260.0,108250.0,0.00174976]
[1761027873249,0.45796,108260.0,108250.0,0.18650726]
[1761027873485,0.64270043,108260.0,108250.0,0.18650726]
[1761027874452,0.64270043,108260.0,108250.0,0.12550726]
[1761027875399,0.34,108260.0,108250.0,0.12550726]
[1761027875624,0.45776,108260.0,108250.0,0.12550726]
[1761027876039,0.64250043,108260.0,108250.0,0.12550726]
[1761027876241,0.30250043,108260.0,108250.0,0.12550726]
[1761027876567,0.11776,108260.0,108250.0,0.17140495]
[1761027878352,0.30244337,108270.0,108260.0,0.18474043]
[1761027881159,0.30244337,108270.0,108250.0,0.17140495]
[1761027881160,0.64244337,108270.0,108250.0,0.17140495]
[1761027881363,0.64244337,108270.0,108260.0,0.18474043]
[1761027881563,0.64244337,108270.0,108260.0,0.11574043]
[1761027882183,0.64244337,108270.0,108250.0,0.17140495]
[1761027882383,0.64244337,108270.0,108250.0,0.1898807]
[1761027883607,0.18474043,108260.0,108250.0,0.01847575]
[1761027883814,0.1847575,108250.0,108240.0,0.00049557]
[1761027884018,0.3023575,108250.0,108240.0,0.00084837]
[1761027884253,0.7152589,108250.0,108240.0,0.00084837]
[1761027884568,0.80826615,108250.0,108240.0,0.00084837]
[1761027885321,3.80826615,108250.0,108240.0,0.00084837]
[1761027886471,3.78419979,108250.0,108240.0,0.00084837]
[1761027887306,3.70079285,108250.0,108240.0,0.00084837]
[1761027888270,3.71079284,108250.0,108240.0,0.00084837]
[1761027891409,3.71079284,108250.0,108190.0,0.31159089]
[1761027891410,0.1848548,108210.0,108190.0,0.18485996]
[1761027891613,0.3024148,108210.0,108190.0,0.18500872]
[1761027892066,0.18484288,108200.0,108190.0,0.18500872]
[1761027892263,0.18484288,108200.0,108190.0,0.19359582]
[1761027892620,0.18484288,108200.0,108190.0,0.18500872]
[1761027893225,0.18484288,108200.0,108190.0,0.19359746]
[1761027893842,0.18484288,108200.0,108190.0,0.18500872]
[1761027894247,0.6423858,108210.0,108190.0,0.22198972]
[1761027894454,0.6423858,108210.0,108190.0,0.18500872]
[1761027895275,0.18484288,108200.0,108190.0,0.18500872]
[1761027896796,0.6423858,108210.0,108190.0,0.18500872]
[1761027897013,0.6423858,108210.0,108200.0,0.00141177]
[1761027898775,0.6423858,108210.0,108190.0,0.18500872]
[1761027898776,0.6423858,108210.0,108190.0,0.12242049]
[1761027899072,0.6423458,108210.0,108200.0,0.18484288]
[1761027899796,0.6423458,108210.0,108190.0,0.12242049]
[1761027899931,0.6423458,108210.0,108190.0,0.14090648]
[1761027900135,0.6423458,108210.0,108200.0,0.18484288]
[1761027900559,0.6423458,108210.0,108190.0,0.12242049]
[1761027900760,0.6423458,108210.0,108190.0,0.17255305]
[1761027900963,0.45752,108210.0,108200.0,0.18484288]
[1761027901238,0.6423458,108210.0,108200.0,0.18484288]
[1761027901475,0.6423458,108210.0,108190.0,0.15406706]
[1761027901665,0.6423458,108210.0,108190.0,0.14090648]
[1761027902070,0.6423458,108210.0,108190.0,0.14190648]
[1761027903234,0.18484288,108200.0,108190.0,0.01948599]
[1761027903431,3.59987892,108200.0,108190.0,0.001]
[1761027904016,3.71735892,108200.0,108190.0,0.001]
[1761027904203,3.80717793,108200.0,108190.0,0.001]
[1761027905837,0.18489867,108170.0,108160.0,0.18491124]
[1761027906060,0.18489867,108170.0,108160.0,0.18504895]
[1761027906694,0.1945746,108170.0,108160.0,0.18504895]
[1761027907129,0.58426948,108170.0,108160.0,0.00013771]
[1761027907555,0.5345746,108170.0,108160.0,0.00013771]
[1761027908655,3.61089237,108170.0,108160.0,0.00013771]
[1761027909485,3.40226741,108170.0,108160.0,0.00013771]
[1761027909688,3.58716608,108170.0,108160.0,0.00013771]
[1761027910312,3.59671175,108170.0,108160.0,0.00013771]
[1761027910645,3.71419175,108170.0,108160.0,0.00013771]
[1761027911065,0.59670722,108170.0,108160.0,0.00013771]
[1761027911262,0.71434722,108170.0,108160.0,0.00013771]
[1761027911962,3.71434722,108170.0,108160.0,0.00013771]
[1761027912763,0.52491124,108160.0,108150.0,0.17306561]
[1761027915964,0.52491124,108160.0,108140.0,0.19419122]
[1761027916386,0.52491124,108160.0,108150.0,0.18669419]
[1761027921058,0.34,108160.0,108150.0,0.18669419]
[1761027921467,0.39764228,108170.0,108160.0,0.18491124]
[1761027921468,0.00954567,108170.0,108160.0,0.18491124]
[1761027921668,0.18489495,108170.0,108150.0,0.30244834]
[1761027921918,0.18489495,108170.0,108160.0,0.18491124]
[1761027922135,0.19466879,108170.0,108160.0,0.18491124]
[1761027922955,0.00977384,108170.0,108160.0,0.18491124]
[1761027923383,0.31164268,108180.0,108160.0,0.18491124]
[1761027923600,0.38789513,108180.0,108160.0,0.18491124]
[1761027923796,0.47771414,108180.0,108160.0,0.18491124]
[1761027924352,0.18489414,108170.0,108160.0,0.18537232]
[1761027925733,0.18489414,108170.0,108160.0,0.11637232]
[1761027927119,0.18489414,108170.0,108160.0,0.11778487]
[1761027927338,0.18489414,108170.0,108160.0,0.00187363]
[1761027928220,3.60121191,108170.0,108160.0,0.00187363]
[1761027931337,3.69103092,108170.0,108160.0,0.00187363]
[1761027932450,3.60121191,108170.0,108160.0,0.00187363]
[1761027932824,3.0,108160.0,108150.0,0.18179515]
[1761027937516,0.64225555,108170.0,108160.0,0.18491124]
[1761027939897,0.64225555,108170.0,108160.0,0.11591124]
[1761027941411,0.34,108170.0,108160.0,0.11591124]
[1761027942129,0.52489414,108170.0,108150.0,0.18214839]
[1761027942440,0.52489414,108170.0,108160.0,0.18491124]
[1761027945349,0.00014835,108180.0,108170.0,0.18489414]
[1761027945612,0.6422654,108180.0,108170.0,0.18489414]
[1761027945759,0.6422654,108180.0,108160.0,0.30215124]
[1761027945970,0.72735383,108180.0,108160.0,0.30215124]
[1761027947011,0.72735383,108180.0,108160.0,0.23315124]
[1761027948379,0.72735383,108180.0,108170.0,0.18489414]
[1761027948551,0.72735383,108180.0,108160.0,0.23315124]
[1761027948753,3.0,108170.0,108160.0,0.23315124]
[1761027950214,0.18489414,108170.0,108160.0,0.23315124]
[1761027950409,0.6422654,108180.0,108160.0,0.11591124]
[1761027950774,3.0,108170.0,108160.0,0.13440236]
[1761027952552,3.18489414,108170.0,108160.0,0.13440236]
[1761027952731,0.18489414,108170.0,108160.0,0.13440236]
[1761027953801,0.18491124,108160.0,108150.0,0.33348158]
[1761027954163,0.18491124,108160.0,108150.0,0.18528158]
[1761027954709,0.18491124,108160.0,108150.0,0.00035324]
[1761027954934,0.18491124,108160.0,108150.0,0.18528158]
[1761027955403,0.18491124,108160.0,108150.0,0.00035324]
[1761027956338,0.18491124,108160.0,108150.0,0.18528158]
[1761027956553,0.18491124,108160.0,108150.0,0.00035324]
[1761027956967,3.33913178,108160.0,108150.0,0.00035324]
[1761027957225,3.67913178,108160.0,108150.0,0.0089643]
[1761027957459,3.64215124,108160.0,108150.0,0.0089643]
[1761027957669,3.64215124,108160.0,108150.0,0.00035324]
[1761027958806,3.71889642,108160.0,108150.0,0.00035324]
[1761027959220,0.18494544,108140.0,108130.0,0.11631297]
[1761027959717,0.18494544,108140.0,108130.0,0.11701961]
[1761027960274,0.64218544,108140.0,108130.0,0.00070664]
[1761027960684,0.64218544,108140.0,108130.0,0.18566918]
[1761027961627,0.18494326,108150.0,108130.0,0.59254293]
[1761027961822,0.18494326,108150.0,108140.0,0.18494544]
[1761027961823,0.71956969,108150.0,108140.0,0.18494544]
[1761027962028,0.45724,108150.0,108140.0,0.18494544]
[1761027962457,0.64216834,108150.0,108140.0,0.18494544]
[1761027963077,0.18494544,108140.0,108130.0,0.18496254]
[1761027963489,0.64216834,108150.0,108130.0,0.18496254]
[1761027963688,0.71955477,108150.0,108130.0,0.18496254]
[1761027964670,0.64216834,108150.0,108140.0,0.18494544]
[1761027965656,0.64216834,108150.0,108130.0,0.18496254]
[1761027966301,0.72580085,108150.0,108130.0,0.18496254]
[1761027966543,0.64216834,108150.0,108130.0,0.18496254]
[1761027967104,0.64216834,108150.0,108140.0,0.00035329]
[1761027967341,0.30220834,108150.0,108140.0,0.00035329]
[1761027968108,3.379381,108150.0,108140.0,0.00035329]
[1761027969438,3.719381,108150.0,108140.0,0.00035329]
[1761027969641,3.73623277,108150.0,108140.0,0.00035329]
[1761027971244,0.18496254,108130.0,108120.0,0.18198136]
[1761027971478,0.18496036,108140.0,108120.0,0.27193824]
[1761027971630,0.55102652,108150.0,108130.0,0.18496254]
[1761027971834,0.66830652,108150.0,108130.0,0.18496254]
[1761027972292,0.21102652,108150.0,108140.0,0.18494544]
[1761027973009,0.18494544,108140.0,108130.0,0.30224254]
[1761027973234,0.18494544,108140.0,108130.0,0.36864252]
[1761027973436,0.18494544,108140.0,108130.0,0.18367998]
[1761027973682,0.18494544,108140.0,108130.0,0.11728]
[1761027973959,0.18494544,108140.0,108130.0,0.32073879]
[1761027974264,0.18494544,108140.0,108130.0,0.18496254]
[1761027974410,0.18494544,108140.0,108130.0,0.20345879]
[1761027975357,0.18494544,108140.0,108130.0,0.18496254]
[1761027976923,0.18496254,108130.0,108120.0,0.00013787]
[1761027977368,0.18496254,108130.0,108120.0,0.0008446]
[1761027979103,0.30222544,108140.0,108120.0,0.18582425]
[1761027979310,0.38003947,108140.0,108120.0,0.18511752]
[1761027979518,0.72003947,108140.0,108130.0,0.00035333]
[1761027979915,0.30222544,108140.0,108130.0,0.18531587]